fUST/lending_fUST_20240520
["ID","MTS","AMOUNT","RATE_DAILY","PERIOD"]
[327547583,1716215447928,-13618.45097385,0.00016721,2]
[327547584,1716215447938,-9561.24585473,0.00016722,2]
[327547585,1716215447948,-2678.29668145,0.00016724,2]
[327547586,1716215447957,-7889.07051852,0.00016724,2]
[327547587,1716215447967,-2638.55970049,0.00016724,2]
[327547588,1716215447977,-1496.05848101,0.00016733,2]
[327547589,1716215447987,-734.10889749,0.00016737,2]
[327547590,1716215447998,-453.57835529,0.00016802,2]
[327547591,1716215448008,-453.57835525,0.00016803,2]
[327547592,1716215448017,-453.57835525,0.00016804,2]
[327547593,1716215448090,-453.57835525,0.00016805,2]
[327547594,1716215448105,-453.57835525,0.00016806,2]
[327547595,1716215448115,-154.82968425,0.00016898,2]
[327547596,1716215448125,-658.02873829,0.00016899,2]
[327547597,1716215448135,-452.43532992,0.00016899,2]
[327547598,1716215448145,-248.067769,0.00016903,2]
[327547599,1716215448154,-516.4124434,0.00016903,2]
[327547600,1716215448165,-354.9995781,0.00016903,2]
[327547601,1716215448175,-910.55549836,0.00016903,2]
[327547602,1716215448185,-207.24447727,0.00016903,2]
[327547603,1716215448194,-1485.70699115,0.00016903,2]
[327547604,1716215448204,-154.81422293,0.00016904,2]
[327547605,1716215448213,-1581.42130168,0.00016904,2]
[327547607,1716215448223,-513.4844886,0.00016906,2]
[327547608,1716215448232,-3062.48237355,0.00016906,2]
[327547609,1716215448241,-522.61290648,0.00016906,2]
[327547610,1716215448251,-1043.25678867,0.00016906,2]
[327547611,1716215448260,-690.19911136,0.00016906,2]
[327547612,1716215448270,-1405.61526917,0.00016906,2]
[327547614,1716215448279,-1897.58698072,0.00016906,2]
[327547616,1716215448288,-261.10136921,0.00016906,2]
[327547618,1716215448298,-528.43613852,0.00016906,2]
[327547619,1716215448307,-194.45514723,0.00016906,2]
[327547621,1716215448317,-156.2364718,0.00016906,2]
[327547622,1716215448326,-492.86440031,0.00016906,2]
[327547623,1716215448336,-281.05958494,0.00016906,2]
[327547624,1716215448346,-157.93380693,0.00016906,2]
[327547625,1716215448357,-285.03925166,0.00016906,2]
[327547626,1716215448367,-157.45012866,0.00016906,2]
[327547627,1716215448376,-818.31964662,0.00016906,2]
[327547628,1716215448386,-835.50091713,0.00016906,2]
[327547629,1716215448396,-330.96158487,0.00016906,2]
[327547630,1716215448406,-262.5749045,0.00016911,2]
[327547631,1716215448415,-1289.5446396,0.00016992,2]
[327547632,1716215448425,-154.814,0.00017995,2]
[327547633,1716215448434,-1113.37468521,0.00018,2]
[327547634,1716215448443,-86059.9023056,0.00018983,2]
[327547635,1716215448453,-555.83580202,0.00019,2]
[327547636,1716215448462,-1350.43959976,0.00019171,2]
[327547637,1716215448471,-165.166004,0.00019171,2]
[327547638,1716215448481,-1094.99548197,0.00019172,2]
[327547639,1716215448491,-1823.06290775,0.00019178,3]
[327547640,1716215448502,-500.0,0.00019178,2]
[327547641,1716215448512,-500.0,0.00019178,2]
[327547642,1716215448522,-300.0,0.00019178,2]
[327547643,1716215448531,-420.0,0.00019178,2]
[327547644,1716215448540,-235.0,0.00019178,2]
[327547645,1716215448550,-500.0,0.00019178,2]
[327547646,1716215448560,-155.0,0.00019178,2]
[327547647,1716215448570,-500.0,0.00019178,2]
[327547648,1716215448579,-500.0,0.00019178,2]
[327547649,1716215448588,-500.0,0.00019178,2]
[327547650,1716215448598,-500.0,0.00019178,2]
[327547651,1716215448608,-500.0,0.00019178,2]
[327547652,1716215448618,-500.0,0.00019178,2]
[327547653,1716215448628,-259.34974133,0.00019178,2]
[327547654,1716215448637,-500.0,0.00019178,2]
[327547655,1716215448647,-561.0,0.00019178,2]
[327547656,1716215448656,-187.74059143,0.00019995,2]
[327547657,1716215448665,-297.04672897,0.00019995,2]
[327547658,1716215448675,-249.72229401,0.00019995,2]
[327547659,1716215448684,-167.51291413,0.00019996,2]
[327547660,1716215448698,-605.35420976,0.00019996,2]
[327547661,1716215448707,-348.43358152,0.0002,2]
[327547662,1716215448716,-36695.33348681,0.0002,2]
[327547663,1716215448725,-1441.49874839,0.00020909,2]
[327547664,1716215448735,-2136.91173092,0.0002091,2]
[327547665,1716215448744,-150.0,0.00021012,3]
[327547666,1716215448753,-495.06,0.00021614,2]
[327547667,1716215448762,-152.065,0.00021959,2]
[327547668,1716215448771,-232.57569195,0.00022,2]
[327547669,1716215448781,-2465.52105849,0.0002359,2]
[327547670,1716215448794,-193.463277,0.00024384,2]
[327547671,1716215448804,-760.11966554,0.00025,2]
[327547672,1716215448813,-400.71262343,0.00025,2]
[327547673,1716215448824,-12322.45852523,0.00025,2]
[327547674,1716215448834,-902.44358623,0.00025933,2]
[327547675,1716215448844,-12069.69118517,0.00029,30]
[327547676,1716215448853,-767.0,0.000291,2]
[327547677,1716215448863,-464.09985769,0.0003,30]
[327547678,1716215448876,-193.463277,0.0003031,2]
[327547679,1716215448887,-150.0,0.00031,6]
[327547680,1716215448897,-2500.0,0.00031,2]
[327547681,1716215448906,-150.0,0.0003263,25]
[327547682,1716215448915,-834.67212597,0.00033993,7]
[327547683,1716215448925,-834.67212597,0.00034102,7]
[327547684,1716215448934,-361.95162801,0.00034223,3]
[327547685,1716215448944,-4222.10020806,0.00034249,2]
[327547686,1716215448954,-417.06273246,0.00034364,2]
[327547687,1716215448964,-635.54172234,0.000344,5]
[327547688,1716215448973,-3131.125128,0.00034469,2]
[327547689,1716215448983,-834.67212597,0.00034493,7]
[327547690,1716215448993,-281.0,0.000345,8]
[327547691,1716215449002,-563.0,0.000345,8]
[327547692,1716215449011,-563.0,0.000345,8]
[327547693,1716215449020,-151.0,0.000345,11]
[327547694,1716215449029,-163996.94606425,0.0003457,2]
[327547695,1716215449039,-157.51,0.00034576,30]
[327547696,1716215449048,-287.0,0.00034977,14]
[327547697,1716215449057,-269.0,0.00034989,14]
[327547698,1716215449068,-10322.56229137,0.00035,2]
[327547699,1716215449077,-886.41112912,0.00035,2]
[327547700,1716215449086,-500.0,0.00035,7]
[327547701,1716215449096,-1000.0,0.00035,30]
[327547702,1716215449105,-216.1525428,0.00035,4]
[327547703,1716215449115,-5963.81079099,0.00035,4]
[327547704,1716215449125,-12744.7276653,0.00035,2]
[327547705,1716215449134,-4762.10124516,0.00035,4]
[327547706,1716215449144,-1331.60225041,0.00035,7]
[327547707,1716215449153,-1331.60225041,0.00035,7]
[327547708,1716215449163,-834.67212597,0.00035015,7]
[327547709,1716215449173,-151.0,0.00035225,2]
[327547710,1716215449183,-297.598339,0.00035225,2]
[327547711,1716215449192,-297.598339,0.00035225,2]
[327547712,1716215449202,-151.0,0.00035225,2]
[327547714,1716215449212,-151.0,0.00035225,2]
[327547715,1716215449221,-241.681376,0.00035225,2]
[327547716,1716215449231,-171.598883,0.00035225,2]
[327547717,1716215449241,-171.598883,0.00035225,2]
[327547718,1716215449250,-151.0,0.00035225,2]
[327547719,1716215449259,-151.0,0.00035225,2]
[327547720,1716215449268,-151.0,0.00035226,2]
[327547721,1716215449278,-151.0,0.00035226,2]
[327547722,1716215449287,-297.598339,0.00035226,2]
[327547723,1716215449297,-297.598339,0.00035226,2]
[327547724,1716215449306,-159.298408,0.00035226,2]
[327547725,1716215449316,-151.0,0.00035226,2]
[327547726,1716215449326,-171.598883,0.00035226,2]
[327547727,1716215449335,-171.598883,0.00035226,2]
[327547728,1716215449344,-151.0,0.00035226,2]
[327547729,1716215449354,-151.0,0.00035226,2]
[327547730,1716215449363,-282.337257,0.0003528,2]
[327547731,1716215449373,-151.0,0.0003528,2]
[327547732,1716215449383,-282.337257,0.0003528,2]
[327547734,1716215449393,-151.0,0.0003528,2]
[327547736,1716215449402,-452.516731,0.0003528,2]
[327547738,1716215449412,-452.516731,0.0003528,2]
[327547740,1716215449421,-357.454161,0.00035281,2]
[327547742,1716215449431,-357.454161,0.00035281,2]
[327547744,1716215449440,-151.0,0.00035281,2]
[327547745,1716215449449,-151.0,0.00035281,2]
[327547747,1716215449459,-151.0,0.00035281,2]
[327547749,1716215449468,-1575.111895,0.00035281,2]
[327547751,1716215449477,-1575.111895,0.00035281,2]
[327547752,1716215449487,-157.898362,0.00035281,2]
[327547753,1716215449496,-151.0,0.00035281,2]
[327547754,1716215449506,-151.0,0.00035281,2]
[327547755,1716215449515,-1008.292534,0.00035281,2]
[327547756,1716215449525,-1008.292534,0.00035281,2]
[327547757,1716215449534,-151.0,0.00035281,2]
[327547758,1716215449544,-151.0,0.00035281,2]
[327547759,1716215449554,-263.061871,0.00035281,2]
[327547760,1716215449563,-282.337257,0.00035281,2]
[327547761,1716215449573,-151.0,0.00035281,2]
[327547762,1716215449582,-282.337257,0.00035281,2]
[327547763,1716215449591,-151.0,0.00035281,2]
[327547764,1716215449601,-224.506943,0.00035281,2]
[327547765,1716215449611,-151.0,0.00035281,2]
[327547766,1716215449620,-452.516731,0.00035281,2]
[327547767,1716215449631,-224.506943,0.00035281,2]
[327547768,1716215449640,-151.0,0.00035281,2]
[327547769,1716215449649,-452.516731,0.00035281,2]
[327547770,1716215449659,-151.0,0.00035281,2]
[327547771,1716215449668,-535.437527,0.00035281,2]
[327547772,1716215449677,-535.437527,0.00035281,2]
[327547773,1716215449687,-321.344672,0.00035281,2]
[327547774,1716215449696,-321.344672,0.00035281,2]
[327547775,1716215449705,-6890.54,0.00035312,2]
[327547776,1716215449715,-6890.54,0.00035312,2]
[327547777,1716215449724,-6890.54,0.00035312,2]
[327547778,1716215449733,-6890.54,0.00035312,2]
[327547779,1716215449742,-6890.54,0.00035312,2]
[327547780,1716215449752,-6890.54,0.00035312,2]
[327547781,1716215449761,-6890.54,0.00035312,2]
[327547782,1716215449770,-6890.54,0.00035312,2]
[327547783,1716215449781,-6890.54,0.00035312,2]
[327547784,1716215449794,-88262.08969827,0.00035313,2]
[327547785,1716215449809,-4102.67837397,0.00035313,2]
[327547786,1716215449818,-1762.02544332,0.00035313,2]
[327547787,1716215449829,-9979.09031062,0.00035313,2]
[327547788,1716215449839,-2718.72780282,0.00035313,2]
[327547789,1716215449850,-3023.13094266,0.00035313,2]
[327547790,1716215449860,-1007.15850238,0.00035313,2]
[327547791,1716215449873,-911.96822373,0.00035313,30]
[327547792,1716215449882,-25128.981195,0.00035313,30]
[327547793,1716215449891,-502.88315767,0.00035313,120]
[327547794,1716215449901,-544.67269877,0.00035313,120]
[327547795,1716215449910,-1000.0,0.00035313,120]
[327547796,1716215449920,-1000.0,0.00035313,120]
[327547797,1716215449930,-371.5,0.00035313,120]
[327547798,1716215449939,-702.40644845,0.00035313,2]
[327547799,1716215449948,-230.040101,0.00035313,2]
[327547800,1716215449957,-230.040101,0.00035313,2]
[327547801,1716215449967,-1336.346878,0.00035313,2]
[327547802,1716215449976,-1336.346878,0.00035313,2]
[327547803,1716215449986,-231.119134,0.00035313,2]
[327547804,1716215449995,-231.119134,0.00035313,2]
[327547805,1716215450005,-151.0,0.00035313,2]
[327547806,1716215450014,-151.0,0.00035313,2]
[327547807,1716215450024,-151.0,0.00035313,2]
[327547808,1716215450034,-151.0,0.00035313,2]
[327547809,1716215450043,-199.543903,0.00035313,2]
[327547810,1716215450054,-2018.029667,0.00035313,2]
[327547811,1716215450065,-199.543903,0.00035313,2]
[327547812,1716215450075,-2018.029667,0.00035313,2]
[327547813,1716215450085,-151.0,0.00035313,2]
[327547814,1716215450095,-151.0,0.00035313,2]
[327547815,1716215450105,-184.294571,0.00035313,2]
[327547816,1716215450114,-834.67212597,0.00035333,7]
[327547817,1716215450124,-834.67212597,0.00035434,7]
[327547818,1716215450134,-834.67212597,0.00035507,7]
[327547819,1716215450143,-357.454161,0.00035615,2]
[327547820,1716215450153,-357.454161,0.00035615,2]
[327547821,1716215450162,-151.0,0.00035615,2]
[327547822,1716215450172,-151.0,0.00035615,2]
[327547823,1716215450271,-151.0,0.00035615,2]
[327547824,1716215450282,-1575.111895,0.00035615,2]
[327547825,1716215450292,-1575.111895,0.00035615,2]
[327547826,1716215450301,-151.0,0.00035615,2]
[327547827,1716215450312,-151.0,0.00035615,2]
[327547828,1716215450322,-1008.292534,0.00035615,2]
[327547829,1716215450331,-1008.292534,0.00035615,2]
[327547830,1716215450341,-151.0,0.00035616,2]
[327547831,1716215450351,-151.0,0.00035616,2]
[327547832,1716215450360,-282.337257,0.00035616,2]
[327547833,1716215450370,-151.0,0.00035616,2]
[327547834,1716215450379,-282.337257,0.00035616,2]
[327547835,1716215450390,-224.506943,0.00035616,2]
[327547836,1716215450400,-262.11447,0.00035616,2]
[327547837,1716215450410,-452.516731,0.00035616,2]
[327547838,1716215450421,-224.506943,0.00035616,2]
[327547839,1716215450432,-151.0,0.00035616,2]
[327547840,1716215450442,-452.516731,0.00035616,2]
[327547841,1716215450451,-151.0,0.00035616,2]
[327547842,1716215450460,-535.437527,0.00035616,2]
[327547843,1716215450469,-535.437527,0.00035616,2]
[327547844,1716215450479,-321.344672,0.00035616,2]
[327547845,1716215450488,-321.344672,0.00035616,2]
[327547846,1716215450497,-151.0,0.00035616,2]
[327547847,1716215450506,-151.0,0.00035616,2]
[327547848,1716215450515,-151.0,0.00035616,2]
[327547849,1716215450524,-199.543903,0.00035616,2]
[327547850,1716215450534,-2018.029667,0.00035616,2]
[327547851,1716215450543,-199.543903,0.00035616,2]
[327547852,1716215450552,-2018.029667,0.00035616,2]
[327547853,1716215450561,-151.0,0.00035616,2]
[327547854,1716215450573,-151.0,0.00035616,2]
[327547855,1716215450582,-34922.95,0.00035616,3]
[327547856,1716215450592,-29102.46,0.00035616,3]
[327547857,1716215450602,-834.67212597,0.00035639,7]
[327547858,1716215450612,-154.90229242,0.0003589,2]
[327547859,1716215450621,-30092.1366144,0.00036,30]
[327547860,1716215450631,-1000.0,0.00036,30]
[327547861,1716215450640,-297.598339,0.00036,2]
[327547862,1716215450650,-297.598339,0.00036,2]
[327547863,1716215450659,-151.0,0.00036,2]
[327547864,1716215450668,-171.598883,0.00036,2]
[327547865,1716215450678,-171.598883,0.00036,2]
[327547866,1716215450687,-151.0,0.00036,2]
[327547867,1716215450697,-151.0,0.00036,2]
[327547868,1716215450706,-151.0,0.00036,2]
[327547869,1716215450715,-1270.204453,0.00036,2]
[327547870,1716215450724,-1270.204453,0.00036,2]
[327547871,1716215450734,-151.0,0.00036,2]
[327547872,1716215450743,-158.15,0.00036,2]
[327547873,1716215450752,-151.0,0.00036,2]
[327547874,1716215450762,-151.0,0.00036,2]
[327547875,1716215450771,-158.15,0.00036,2]
[327547876,1716215450781,-151.0,0.00036,2]
[327547877,1716215450792,-230.040101,0.00036,2]
[327547878,1716215450802,-230.040101,0.00036,2]
[327547879,1716215450811,-1336.346878,0.00036,2]
[327547880,1716215450821,-1336.346878,0.00036,2]
[327547881,1716215450832,-231.119134,0.00036,2]
[327547882,1716215450841,-231.119134,0.00036,2]
[327547883,1716215450850,-151.0,0.00036,2]
[327547884,1716215450860,-834.67212597,0.00036005,7]
[327547885,1716215450871,-193.463277,0.00036236,2]
[327547886,1716215450881,-834.67212597,0.00036303,7]
[327547887,1716215450890,-150.80395486,0.00036424,2]
[327547888,1716215450900,-834.67212597,0.00036605,7]
[327547889,1716215450910,-834.67212597,0.00036975,7]
[327547890,1716215450919,-1707.76234616,0.00037,2]
[327547891,1716215450928,-1000.0,0.00037,30]
[327547892,1716215450937,-301.60790972,0.00037036,4]
[327547893,1716215450947,-1331.60225041,0.000371,7]
[327547894,1716215450956,-1331.60225041,0.000371,7]
[327547895,1716215450965,-368.0,0.00037313,15]
[327547896,1716215450975,-150.4,0.00037313,15]
[327547897,1716215450984,-357.454161,0.00037329,2]
[327547898,1716215450996,-357.454161,0.00037329,2]
[327547899,1716215451006,-151.0,0.00037329,2]
[327547900,1716215451016,-151.0,0.00037329,2]
[327547901,1716215451027,-1575.111895,0.00037329,2]
[327547902,1716215451037,-1575.111895,0.00037329,2]
[327547903,1716215451046,-151.0,0.00037329,2]
[327547904,1716215451056,-151.0,0.00037329,2]
[327547905,1716215451066,-1008.292534,0.00037329,2]
[327547906,1716215451076,-1008.292534,0.00037329,2]
[327547907,1716215451085,-224.506943,0.00037329,2]
[327547908,1716215451096,-224.506943,0.00037329,2]
[327547909,1716215451106,-151.0,0.00037329,2]
[327547910,1716215451116,-535.437527,0.00037329,2]
[327547911,1716215451126,-535.437527,0.00037329,2]
[327547912,1716215451136,-321.344672,0.00037329,2]
[327547913,1716215451145,-321.344672,0.00037329,2]
[327547914,1716215451155,-603.21581943,0.00037659,7]
[327547915,1716215451165,-1000.0,0.00038,30]
[327547916,1716215451174,-653.4,0.00038026,15]
[327547917,1716215451183,-150.4,0.00038026,15]
[327547918,1716215451193,-151.0,0.00038097,2]
[327547919,1716215451203,-151.0,0.00038097,2]
[327547920,1716215451213,-834.67212597,0.00038328,7]
[327547921,1716215451222,-1206.43163887,0.00038612,30]
[327547922,1716215451232,-653.4,0.00038738,15]
[327547923,1716215451241,-150.4,0.00038738,15]
[327547924,1716215451249,-289.0,0.00038741,26]
[327547925,1716215451260,-834.67212597,0.00038783,7]
[327547926,1716215451270,-834.67212597,0.00038877,7]
[327547927,1716215451280,-1000.0,0.00039,30]
[327547928,1716215451289,-154.7478452,0.00039178,2]
[327547929,1716215451298,-153.0,0.00039178,2]
[327547930,1716215451308,-153.0,0.00039178,2]
[327547931,1716215451317,-153.0,0.00039178,2]
[327547932,1716215451329,-153.0,0.00039178,2]
[327547933,1716215451339,-1452.65700044,0.000392,11]
[327547934,1716215451349,-1452.65700044,0.000392,11]
[327547935,1716215451358,-653.4,0.00039451,15]
[327547936,1716215451368,-150.4,0.00039451,15]
[327547937,1716215451377,-1000.87435041,0.000395,2]
[327547938,1716215451387,-834.67212597,0.00039912,7]
[327547939,1716215451396,-171.17528,0.00039998,2]
[327547940,1716215451406,-151.0,0.00039998,2]
[327547941,1716215451417,-151.0,0.00039998,2]
[327547942,1716215451426,-199.543903,0.00039998,2]
[327547943,1716215451435,-2018.029667,0.00039998,2]
[327547944,1716215451445,-199.543903,0.00039998,2]
[327547945,1716215451455,-2018.029667,0.00039998,2]
[327547946,1716215451465,-151.0,0.00039998,2]
[327547947,1716215451475,-151.0,0.00039998,2]
[327547948,1716215451484,-6890.54,0.00039999,2]
[327547949,1716215451493,-319.84498314,0.0004,3]
[327547950,1716215451503,-107639.2357096,0.0004,2]
[327547951,1716215451512,-1000.0,0.0004,8]
[327547952,1716215451522,-1000.0,0.0004,8]
[327547953,1716215451531,-1000.0,0.0004,8]
[327547954,1716215451541,-1000.0,0.0004,8]
[327547955,1716215451550,-1000.0,0.0004,8]
[327547956,1716215451560,-1000.0,0.0004,8]
[327547957,1716215451569,-1000.0,0.0004,8]
[327547958,1716215451579,-1000.0,0.0004,8]
[327547959,1716215451589,-405.53847769,0.0004,120]
[327547960,1716215451599,-1998.2476928,0.0004,120]
[327547961,1716215451609,-1638.0462997,0.0004,15]
[327547962,1716215451618,-500.0,0.0004,10]
[327547963,1716215451628,-391.0,0.0004,120]
[327547964,1716215451638,-10000.0,0.0004,30]
[327547965,1716215451648,-503.44116781,0.0004,30]
[327547966,1716215451658,-311.24184414,0.0004,120]
[327547967,1716215451667,-479.86,0.0004,120]
[327547968,1716215451678,-9425.24968776,0.0004,30]
[327547969,1716215451688,-297.598339,0.0004,2]
[327547970,1716215451699,-297.598339,0.0004,2]
[327547971,1716215451710,-151.0,0.0004,2]
[327547972,1716215451721,-357.454161,0.0004,2]
[327547973,1716215451730,-357.454161,0.0004,2]
[327547974,1716215451739,-171.598883,0.0004,2]
[327547975,1716215451749,-171.598883,0.0004,2]
[327547976,1716215451757,-151.0,0.0004,2]
[327547977,1716215451770,-151.0,0.0004,2]
[327547978,1716215451780,-151.0,0.0004,2]
[327547979,1716215451799,-151.0,0.0004,2]
[327547980,1716215451819,-1575.111895,0.0004,2]
[327547981,1716215451835,-1575.111895,0.0004,2]
[327547982,1716215451843,-151.0,0.0004,2]
[327547983,1716215451852,-151.0,0.0004,2]
[327547984,1716215451861,-1008.292534,0.0004,2]
[327547985,1716215451870,-1008.292534,0.0004,2]
[327547986,1716215451879,-151.0,0.0004,2]
[327547987,1716215451888,-151.0,0.0004,2]
[327547988,1716215451897,-151.0,0.0004,2]
[327547989,1716215451906,-1270.204453,0.0004,2]
[327547990,1716215451915,-1270.204453,0.0004,2]
[327547991,1716215451924,-151.0,0.0004,2]
[327547992,1716215451934,-151.0,0.0004,2]
[327547993,1716215451943,-158.15,0.0004,2]
[327547994,1716215451951,-151.0,0.0004,2]
[327547995,1716215451960,-158.15,0.0004,2]
[327547996,1716215451969,-151.0,0.0004,2]
[327547997,1716215451979,-282.337257,0.0004,2]
[327547998,1716215451988,-207.861624,0.0004,2]
[327547999,1716215451997,-282.337257,0.0004,2]
[327548000,1716215452006,-224.506943,0.0004,2]
[327548001,1716215452015,-452.516731,0.0004,2]
[327548002,1716215452024,-224.506943,0.0004,2]
[327548003,1716215452033,-452.516731,0.0004,2]
[327548004,1716215452042,-151.0,0.0004,2]
[327548005,1716215452051,-535.437527,0.0004,2]
[327548006,1716215452060,-535.437527,0.0004,2]
[327548007,1716215452068,-230.040101,0.0004,2]
[327548008,1716215452079,-321.344672,0.0004,2]
[327548009,1716215452088,-321.344672,0.0004,2]
[327548010,1716215452097,-230.040101,0.0004,2]
[327548011,1716215452108,-1336.346878,0.0004,2]
[327548012,1716215452118,-1336.346878,0.0004,2]
[327548013,1716215452127,-231.119134,0.0004,2]
[327548014,1716215452136,-231.119134,0.0004,2]
[327548015,1716215452146,-249.567945,0.0004,2]
[327548016,1716215452156,-151.0,0.0004,2]
[327548017,1716215452165,-151.0,0.0004,2]
[327548018,1716215452175,-199.543903,0.0004,2]
[327548019,1716215452184,-2018.029667,0.0004,2]
[327548020,1716215452194,-199.543903,0.0004,2]
[327548021,1716215452204,-2018.029667,0.0004,2]
[327548022,1716215452214,-151.0,0.0004,2]
[327548023,1716215452223,-151.0,0.0004,2]
[327548024,1716215452233,-6000.0,0.0004,120]
[327548025,1716215452243,-834.67212597,0.00040102,30]
[327548026,1716215452253,-653.4,0.00040163,15]
[327548027,1716215452262,-150.4,0.00040163,15]
[327548028,1716215452272,-517.0,0.000405,8]
[327548029,1716215452281,-834.67212597,0.00040672,30]
[327548030,1716215452291,-653.4,0.00040876,15]
[327548031,1716215452300,-150.4,0.00040876,15]
[327548032,1716215452310,-156.66392067,0.00040914,120]
[327548033,1716215452320,-1000.0,0.00041,9]
[327548034,1716215452331,-1000.0,0.00041,9]
[327548035,1716215452341,-1000.0,0.00041,9]
[327548036,1716215452351,-1000.0,0.00041,9]
[327548037,1716215452361,-1000.0,0.00041,9]
[327548038,1716215452371,-10000.0,0.00041,30]
[327548039,1716215452381,-1000.0,0.00041095,30]
[327548040,1716215452391,-500.0,0.00041096,31]
[327548041,1716215452400,-500.0,0.00041096,31]
[327548042,1716215452410,-196.68371692,0.00041096,31]
[327548043,1716215452419,-175.0,0.00041096,38]
[327548044,1716215452429,-834.67212597,0.00041125,30]
[327548045,1716215452438,-1452.65700044,0.000413,11]
[327548046,1716215452448,-1452.65700044,0.000413,11]
[327548047,1716215452457,-834.67212597,0.00041435,30]
[327548048,1716215452561,-1000.0,0.000415,9]
[327548049,1716215452571,-653.4,0.00041588,30]
[327548050,1716215452582,-150.4,0.00041588,30]
[327548051,1716215452590,-1000.0,0.00041643,31]
[327548052,1716215452600,-834.67212597,0.00041721,30]
[327548053,1716215452609,-1000.0,0.00042,10]
[327548054,1716215452619,-10000.0,0.00042,30]
[327548055,1716215452628,-193.463277,0.00042163,2]
[327548056,1716215452637,-1000.0,0.00042191,32]
[327548057,1716215452647,-160.0,0.00042499,30]
[327548058,1716215452656,-1000.0,0.000425,8]
[327548059,1716215452666,-415271.18085709,0.000425,30]
[327548060,1716215536102,154.79876161,9.999e-05,2]
[327548061,1716215552549,191.3612533,0.0002651,120]
[327548062,1716215611237,154.79876161,9.999e-05,2]
[327548063,1716215723914,1000.0,0.00025,60]
[327548066,1716215999890,1095.21612986,9.999e-05,2]
[327548067,1716216373119,273.37336231,9.9e-05,2]
[327548068,1716216381902,273.37336231,9.9e-05,2]
[327548069,1716216391550,273.37336231,9.9e-05,2]
[327548070,1716216400028,273.37336231,9.9e-05,2]
[327548071,1716216408252,273.37336231,9.9e-05,2]
[327548072,1716216437119,-194.39143777,0.00016263,2]
[327548073,1716216551159,-6851.84807003,0.00016256,2]
[327548074,1716216569105,-1082.37989948,0.00016254,2]
[327548124,1716216638562,-946.51475497,0.0001625,2]
[327548140,1716216640656,-2797.45576366,0.00016249,2]
[327548141,1716216640667,-939.31873853,0.0001625,2]
[327548142,1716216640676,-7939.19405738,0.00016251,2]
[327548143,1716216640686,-11056.52493755,0.00016252,2]
[327548144,1716216640695,-9557.3584377,0.00016253,2]
[327548145,1716216640706,-49854.63578131,0.00016253,2]
[327548146,1716216640716,-281.61001373,0.00016254,2]
[327548147,1716216640726,-16150.29148189,0.00016254,2]
[327548148,1716216640735,-2210.24953826,0.00016259,2]
[327548149,1716216640745,-626.94634782,0.00016259,2]
[327548150,1716216640754,-579.44321214,0.00016485,2]
[327548151,1716216640763,-274.31398473,0.000165,2]
[327548152,1716216640776,-24900.0,0.00018983,2]
[327548153,1716216640786,-370.55720135,0.00019,2]
[327548154,1716216640795,-500.0,0.00019178,2]
[327548155,1716216640804,-500.0,0.00019178,2]
[327548156,1716216640814,-252.2820157,0.00019178,2]
[327548157,1716216640823,-500.0,0.00019178,2]
[327548158,1716216640833,-500.0,0.00019178,2]
[327548159,1716216640843,-500.0,0.00019178,2]
[327548160,1716216640852,-500.0,0.00019178,2]
[327548161,1716216640862,-427.23090225,0.00019178,2]
[327548162,1716216640871,-500.0,0.00019178,2]
[327548163,1716216640881,-500.0,0.00019178,2]